bitfinex/quotes_ETHUSD_20241120
["timestamp","ask_amount","ask_price","bid_price","bid_amount"]
[1732093151800,3.97898,3122.5,3121.8,3.20321]
[1732093152302,3.20272,3122.4,3121.7,3.20328]
[1732093152931,3.20272,3122.4,3121.8,3.20324]
[1732093153603,0.7764,3122.5,3122.0,3.20305]
[1732093154238,0.7764,3122.5,3121.8,3.20321]
[1732093154412,3.97897,3122.5,3121.8,3.20319]
[1732093154830,3.97897,3122.5,3122.2,0.259807]
[1732093155247,4.697103,3122.5,3122.2,0.259807]
[1732093155461,3.20268,3122.4,3122.2,0.259807]
[1732093155655,4.697103,3122.5,3122.2,0.259807]
[1732093155861,1.494533,3122.5,3122.2,0.259807]
[1732093156155,0.7764,3122.5,3122.2,0.259807]
[1732093157423,3.97905,3122.5,3122.2,0.259807]
[1732093157730,3.20276,3122.3,3122.2,0.259807]
[1732093158463,3.99326,3122.3,3122.2,0.259807]
[1732093162949,0.7905,3122.3,3122.2,0.259807]
[1732093164151,0.7905,3122.5,3122.2,0.259807]
[1732093165947,3.20219,3122.9,3122.2,0.259807]
[1732093165948,0.8057,3122.8,3122.2,0.259807]
[1732093166164,0.8057,3122.8,3122.2,3.462607]
[1732093166658,0.8057,3122.8,3122.3,3.20275]
[1732093167065,4.00796,3122.8,3122.2,3.462607]
[1732093167284,0.8057,3122.8,3122.3,3.20276]
[1732093167598,4.00801,3122.8,3122.2,3.462607]
[1732093168749,4.00801,3122.8,3122.2,0.259807]
[1732093168954,4.00801,3122.8,3122.2,3.462647]
[1732093169204,0.8057,3122.8,3122.3,3.2027]
[1732093170390,4.00797,3122.8,3122.2,0.259807]
[1732093170620,3.20241,3122.7,3122.2,0.259807]
[1732093171375,0.8057,3122.8,3122.2,3.462657]
[1732093171783,0.8057,3122.8,3122.3,3.20269]
[1732093171986,4.00775,3123.0,3122.4,3.96683]
[1732093172311,0.8057,3123.0,3122.4,3.96683]
[1732093173375,4.0078,3123.0,3122.4,3.96683]
[1732093174107,0.8057,3123.2,3122.7,3.20229]
[1732093174313,0.8057,3123.2,3122.8,3.20222]
[1732093174468,0.8057,3123.4,3122.8,3.20222]
[1732093174668,0.8057,3123.4,3122.8,3.20219]
[1732093174867,0.8057,3123.4,3122.9,0.7642]
[1732093175301,4.00735,3123.4,3122.9,0.7642]
[1732093175494,4.00735,3123.4,3122.8,3.20223]
[1732093176193,4.00735,3123.4,3122.8,3.20218]
[1732093176401,4.408095,3123.4,3122.6,0.7642]
[1732093176726,3.20194,3123.2,3122.5,0.55]
[1732093176900,3.20194,3123.2,3122.6,3.20242]
[1732093177473,3.2018,3123.3,3122.6,3.20242]
[1732093177682,3.9627895,3123.3,3122.6,3.20242]
[1732093178358,3.9627895,3123.3,3122.6,6.40479]
[1732093178495,0.8057,3123.4,3122.8,3.20224]
[1732093178831,4.00736,3123.4,3122.8,3.20224]
[1732093181032,0.8057,3123.4,3122.8,3.20221]
[1732093181532,4.00739,3123.4,3122.8,3.20221]
[1732093182629,3.20185,3123.2,3122.6,3.2024]
[1732093182834,3.20176,3123.3,3122.7,3.20228]
[1732093183727,3.20184,3123.2,3122.5,0.55]
[1732093183894,3.20184,3123.2,3122.6,3.2024]
[1732093184721,3.20184,3123.2,3122.6,3.20238]
[1732093184998,3.20184,3123.2,3122.6,6.40477]
[1732093185330,3.20184,3123.2,3122.6,3.20238]
[1732093185538,3.20184,3123.2,3122.4,0.7642]
[1732093185539,0.720923,3123.2,3122.4,0.7642]
[1732093185737,0.720923,3123.2,3122.4,3.96685]
[1732093185738,3.2021,3123.0,3122.4,3.96685]
[1732093186108,3.2021,3123.0,3122.4,3.20265]
[1732093187839,3.98676,3123.1,3122.5,3.20253]
[1732093188640,3.98676,3123.1,3122.4,3.20258]
[1732093188865,3.98676,3123.1,3122.5,3.52231]
[1732093189305,3.20207,3123.0,3122.5,0.3198]
[1732093189628,3.20215,3122.9,3122.5,0.3198]
[1732093190019,3.20215,3122.9,3122.2,4.232477]
[1732093190020,3.98712,3122.8,3122.3,0.3198]
[1732093190549,3.20235,3122.7,3122.3,0.3198]
[1732093190701,3.20248,3122.6,3122.2,0.259807]
[1732093191536,3.64226747,3122.7,3122.2,0.259807]
[1732093192242,3.20249,3122.6,3122.2,0.259807]
[1732093192623,0.43991747,3122.7,3122.2,0.259807]
[1732093192822,0.43991747,3122.7,3122.3,3.20276]
[1732093193129,3.98707,3122.8,3122.3,3.20276]
[1732093193309,3.98707,3122.8,3122.2,0.259807]
[1732093193708,0.7848,3122.8,3122.3,3.20274]
[1732093194111,0.7848,3122.8,3122.2,0.259807]
[1732093194322,3.98711,3122.8,3122.2,0.259807]
[1732093194516,3.98711,3122.8,3122.2,3.462627]
[1732093195029,0.7848,3122.8,3122.2,0.259807]
[1732093195354,3.20237,3122.7,3122.2,0.259807]
[1732093195850,3.98706,3122.8,3122.2,3.462607]
[1732093196811,3.20236,3122.7,3122.2,0.259807]
[1732093196963,3.921285,3122.7,3122.2,0.259807]
[1732093199960,3.0,3123.1,3122.5,3.20249]
[1732093199961,6.98679,3123.1,3122.5,3.20249]
[1732093200261,6.98679,3123.1,3122.3,3.20268]
[1732093200262,3.20228,3122.8,3122.3,3.20268]
[1732093200622,3.20228,3122.8,3122.2,0.259807]
[1732093200623,3.98696,3122.9,3122.4,3.20266]
[1732093200893,4.2533639,3122.9,3122.5,3.20255]
[1732093201050,0.4685639,3122.9,3122.5,3.2025]
[1732093201254,0.7848,3123.1,3122.8,3.20223]
[1732093201685,4.32775744,3122.9,3122.2,3.462617]
[1732093201887,0.7848,3122.8,3122.2,3.462617]
[1732093202262,0.7848,3122.8,3122.4,3.2026]
[1732093202459,0.7848,3122.8,3122.5,3.20256]
[1732093203301,0.7848,3122.8,3122.4,3.2026]
[1732093203494,0.7848,3122.8,3122.6,3.20241]
[1732093203957,0.7848,3123.1,3122.8,3.20225]
[1732093204158,1.53777074,3123.1,3122.7,3.20234]
[1732093204757,1.53777074,3123.1,3122.6,3.20241]
[1732093205060,3.77396207,3123.0,3122.6,3.20238]
[1732093205261,6.97602207,3123.0,3122.3,3.20268]
[1732093205447,3.77396207,3123.0,3122.6,3.20237]
[1732093205651,3.77396207,3123.0,3122.5,3.20249]
[1732093205652,6.9868,3123.1,3122.5,3.20254]
[1732093206001,6.9868,3123.1,3122.6,3.20239]
[1732093206297,3.20205,3123.0,3122.4,3.2026]
[1732093206587,3.90073,3123.0,3122.4,3.2026]
[1732093206811,3.20215,3122.9,3122.3,3.20271]
[1732093207087,3.20241,3122.7,3122.2,0.259807]
[1732093207796,3.20246,3122.6,3122.2,0.259807]
[1732093207964,2.11255744,3122.8,3122.2,0.259807]
[1732093208180,6.40481,3122.7,3122.2,0.259807]
[1732093208659,3.20237,3122.7,3122.2,0.259807]
[1732093208861,3.20247,3122.6,3122.2,0.259807]
[1732093210399,1.32775744,3122.6,3122.2,0.259807]
[1732093210604,1.32775744,3122.4,3122.2,0.259807]
[1732093210763,7.50438174,3122.3,3122.2,0.259807]
[1732093216002,0.7701,3122.3,3122.2,0.259807]
[1732093217307,3.7701,3122.3,3122.2,0.259807]
[1732093217868,3.0,3122.5,3122.2,0.259807]
[1732093218070,0.7701,3122.6,3122.3,3.20275]
[1732093218393,0.7701,3122.6,3122.2,3.462647]
[1732093218974,0.7701,3122.9,3122.3,3.20268]
[1732093219362,0.7701,3122.9,3122.2,0.259807]
[1732093219517,6.97226,3122.9,3122.4,3.20264]
[1732093220913,6.97226,3122.9,3122.3,3.20276]
[1732093220914,3.0,3122.7,3122.3,3.20276]
[1732093221083,3.20227,3122.8,3122.2,0.259807]
[1732093221084,0.7701,3122.6,3122.2,0.259807]
[1732093221407,3.0,3122.5,3122.2,0.259807]
[1732093221611,3.899994,3122.4,3122.2,0.259807]
[1732093221808,3.0,3122.5,3122.2,0.259807]
[1732093221986,6.20256,3122.5,3122.2,0.259807]
[1732093222697,3.20266,3122.4,3122.2,0.259807]
[1732093222874,0.620266,3122.3,3122.2,0.259807]
[1732093223290,3.823026,3122.3,3122.2,0.259807]
[1732093224316,7.593126,3122.3,3122.2,0.259807]
[1732093224532,10.48128802,3122.3,3122.2,0.259807]
[1732093224738,7.603126,3122.3,3122.2,0.259807]
[1732093224939,10.48128802,3122.3,3122.2,0.259807]
[1732093227242,10.49128802,3122.3,3122.2,0.259807]
[1732093230043,10.39128802,3122.3,3122.2,0.259807]
[1732093231999,7.513126,3122.3,3122.2,0.259807]
[1732093233353,3.20404,3121.1,3120.5,0.8082]
[1732093233637,3.524574,3121.0,3120.5,0.8082]
[1732093233936,3.20417,3121.0,3120.5,0.8082]
[1732093234109,3.20404,3121.1,3120.5,4.0128]
[1732093234320,3.20404,3121.1,3120.5,0.8082]
[1732093234625,3.20426,3120.9,3120.5,0.8082]
[1732093236039,3.20411,3121.0,3120.5,0.8082]
[1732093236244,3.20402,3121.1,3120.5,0.8082]
[1732093236403,3.20421,3120.9,3120.5,0.8082]
[1732093238543,3.20445,3120.7,3120.2,3.20491]
[1732093238766,3.20421,3120.9,3119.8,0.33324966]
[1732093238767,1.32916825,3120.9,3120.1,1.124]
[1732093238947,3.20469,3120.5,3120.1,0.8042]
[1732093239733,0.7838,3120.6,3120.1,0.8042]
[1732093239934,6.98834,3120.6,3120.1,0.8042]
[1732093240176,3.20465,3120.5,3120.1,0.8042]
[1732093240376,4.96804292,3120.6,3120.1,0.8042]
[1732093240737,3.20463,3120.5,3120.1,0.8042]
[1732093241243,4.96804292,3120.6,3120.1,0.8042]
[1732093241244,4.18424292,3120.6,3120.1,0.8042]
[1732093241446,3.20466,3120.5,3120.1,0.8042]
[1732093242564,6.20472,3120.4,3120.1,0.8042]
[1732093242772,3.20482,3120.3,3120.1,0.8042]
[1732093242976,3.0,3120.4,3120.1,0.8042]
[1732093243278,0.833,3120.8,3120.3,3.20476]
[1732093243450,3.20427,3120.9,3120.4,0.7768]
[1732093243653,3.20402,3121.1,3120.4,3.9815]
[1732093243654,0.36573388,3121.0,3120.4,3.9815]
[1732093243860,3.20418,3121.0,3120.4,3.9815]
[1732093244179,3.20426,3120.9,3120.4,0.7768]
[1732093244854,3.20432,3120.8,3120.4,0.7768]
[1732093245242,3.20442,3120.7,3120.4,0.7768]
[1732093245582,3.20426,3120.9,3120.4,0.7768]
[1732093245792,6.40855,3120.9,3120.4,0.7768]
[1732093245991,3.20426,3120.9,3120.4,0.7768]
[1732093246147,6.40855,3120.9,3120.4,0.7768]
[1732093246350,3.20426,3120.9,3120.4,0.7768]
[1732093246550,3.2043,3120.8,3120.4,0.7768]
[1732093246896,3.20441,3120.7,3120.4,0.7768]
[1732093247400,3.20441,3120.7,3120.0,3.98192]
[1732093247859,3.20453,3120.6,3120.0,3.98192]
[1732093248265,3.20481,3120.4,3120.0,0.7768]
[1732093251396,3.20489,3120.3,3120.0,0.7768]
[1732093252405,6.20494,3120.2,3119.7,0.7768]
[1732093252761,3.0,3120.2,3119.7,3.98223]
[1732093255190,3.0,3120.3,3119.8,3.20526]
[1732093255402,3.20486,3120.3,3119.8,3.20526]
[1732093255714,3.0,3120.2,3119.9,3.2052]
[1732093255915,4.03738,3120.8,3120.2,3.99425]
[1732093256212,3.9605846,3120.8,3120.2,3.99425]
[1732093256408,3.20443,3120.7,3120.2,3.99425]
[1732093256616,3.20441,3120.7,3120.2,3.99425]
[1732093257416,3.20441,3120.7,3120.2,0.7894]
[1732093257622,3.20441,3120.7,3120.2,3.99428]
[1732093257916,3.20442,3120.7,3120.2,0.7894]
[1732093258419,3.20462,3120.5,3120.2,0.7894]
[1732093260829,3.20473,3120.4,3120.2,0.7894]
[1732093261130,3.20462,3120.5,3119.9,3.9743]
[1732093261494,4.53408221,3120.7,3120.0,3.2051]
[1732093261695,3.65796822,3120.6,3120.0,3.2051]
[1732093262121,3.20462,3120.5,3119.9,0.7691]
[1732093262291,3.20462,3120.5,3119.9,3.97429]
[1732093263229,3.20472,3120.4,3119.9,3.97429]
[1732093264470,3.2049,3120.3,3119.9,0.7691]
[1732093264593,1.82841425,3120.5,3119.9,0.7691]
[1732093264939,1.32966221,3120.5,3119.9,0.7691]
[1732093265106,3.20481,3120.4,3119.9,0.7691]
[1732093266394,7.22903,3120.8,3120.0,3.20506]
[1732093266597,1.0549456,3120.7,3120.3,0.7691]
[1732093266833,3.0,3120.9,3120.4,3.20464]
[1732093267134,6.20428,3120.9,3120.3,0.7691]
[1732093267295,7.27808922,3120.9,3120.3,0.7691]
[1732093267501,3.20432,3120.8,3120.3,0.7691]
[1732093268915,3.20443,3120.7,3120.3,0.7691]
[1732093269753,3.20455,3120.6,3120.3,0.7691]
[1732093270054,0.640898,3120.5,3120.1,3.20502]
[1732093270353,3.20432,3120.8,3120.2,3.20484]
[1732093270512,3.0,3120.9,3120.5,0.7691]
[1732093270716,0.94280214,3120.8,3120.5,0.7691]
[1732093271257,3.0,3120.9,3120.5,0.7691]
[1732093271464,6.20421,3120.9,3120.5,0.7691]
[1732093271748,3.0,3120.9,3120.5,0.7691]
[1732093271907,3.0,3120.9,3120.5,3.97367]
[1732093272114,3.0,3121.1,3120.5,3.97367]
[1732093272326,3.0,3121.1,3120.6,3.20443]
[1732093272557,5.31899221,3121.6,3121.0,0.811]
[1732093272848,3.20353,3121.6,3121.1,3.20398]
[1732093273052,0.53189922,3121.5,3121.0,4.01503]
[1732093273260,3.73547922,3121.5,3121.0,4.01503]
[1732093273552,3.98912,3121.8,3121.0,4.01503]
[1732093273553,3.20332,3121.8,3121.1,0.811]
[1732093273762,3.20345,3121.7,3121.1,0.811]
[1732093273908,0.640677,3121.6,3121.1,0.811]
[1732093274423,3.20339,3121.7,3121.1,0.811]
[1732093275029,6.2035,3121.6,3121.1,0.811]
[1732093275549,3.0,3121.6,3121.1,4.01498]
[1732093276661,3.0,3121.6,3121.2,3.20388]
[1732093276869,3.20321,3121.9,3121.2,3.20388]
[1732093276870,3.0,3121.8,3121.2,3.20388]
[1732093277163,6.89009639,3121.8,3121.2,3.20388]
[1732093278337,6.89009639,3121.8,3121.1,0.811]
[1732093278741,3.20359,3121.5,3121.1,0.811]
[1732093278942,3.20356,3121.6,3121.1,0.811]
[1732093280269,3.20359,3121.5,3121.1,0.811]
[1732093280442,3.98939,3121.5,3120.9,3.20415]
[1732093280760,5.03345846,3121.5,3120.8,4.01525]
[1732093280962,3.20372,3121.4,3120.8,4.01525]
[1732093281169,3.20387,3121.3,3120.8,0.811]
[1732093281370,3.70722885,3121.3,3120.8,0.811]
[1732093281731,0.50335885,3121.3,3120.8,0.811]
[1732093282266,3.70717885,3121.3,3120.8,0.811]
[1732093282482,3.20382,3121.3,3120.8,0.811]
[1732093283362,3.20382,3121.3,3120.8,4.0153]
[1732093283672,0.7858,3121.5,3120.8,4.0153]
[1732093283967,3.20383,3121.3,3120.8,0.811]
[1732093284268,3.923156,3121.3,3120.8,0.811]
[1732093285270,3.923156,3121.3,3120.7,3.20436]
[1732093285271,7.127016,3121.3,3120.7,3.20436]
[1732093285567,3.20433,3120.8,3120.6,0.811]
[1732093285737,3.20433,3120.8,3120.2,0.8103]
[1732093286336,3.20446,3120.7,3120.2,4.01521]
[1732093286529,0.36922539,3120.9,3120.4,3.2047]
[1732093287232,0.36922539,3120.9,3120.4,3.20463]
[1732093287440,3.0,3121.1,3120.6,3.20443]
[1732093288326,3.20358,3121.5,3120.9,0.8103]
[1732093288531,3.20358,3121.5,3121.0,3.20409]
[1732093288833,0.320358,3121.4,3121.0,3.20409]
[1732093289030,3.20355,3121.6,3121.0,3.20409]
[1732093289234,6.40711,3121.6,3121.0,3.20409]
[1732093289435,3.20355,3121.6,3121.0,3.20409]
[1732093289636,6.40712,3121.6,3121.0,3.20409]
[1732093289868,3.20359,3121.5,3121.0,3.20409]
[1732093291259,3.20375,3121.4,3120.9,0.8103]
[1732093292239,3.20393,3121.2,3120.9,0.8103]
[1732093292484,3.20375,3121.4,3120.9,0.8103]
[1732093292783,3.20381,3121.3,3120.9,0.8103]
[1732093293165,0.4225782,3121.4,3120.9,0.8103]
[1732093293482,0.8132,3121.3,3120.7,3.20439]
[1732093293786,4.01699,3121.3,3120.7,3.20439]
[1732093295278,4.01699,3121.3,3120.6,0.8103]
[1732093295445,4.01699,3121.3,3120.6,4.01477]
[1732093295446,3.20396,3121.2,3120.6,4.01477]
[1732093295835,3.20396,3121.2,3120.7,3.20439]
[1732093296967,3.20377,3121.4,3120.7,3.20439]
[1732093297135,3.0,3121.5,3121.0,0.8103]
[1732093297136,3.20367,3121.5,3121.0,0.8103]
[1732093297666,3.20367,3121.5,3121.0,4.01439]
[1732093297871,4.225697,3121.5,3121.0,4.01439]
[1732093298047,1.022027,3121.5,3121.0,0.8103]
[1732093298256,1.022027,3121.5,3121.1,3.20398]
[1732093299294,0.8132,3122.1,3121.5,0.8103]
[1732093299492,0.01,3123.0,3121.7,3.20337]
[1732093299493,0.8132,3122.4,3121.7,3.20337]
[1732093299696,3.20286,3122.3,3121.7,3.20337]
[1732093299864,0.401606,3122.2,3121.7,3.20337]
[1732093300269,3.20277,3122.3,3121.7,3.20337]
[1732093300664,3.20288,3122.2,3121.7,3.20337]
[1732093301064,3.20288,3122.2,3121.5,4.01386]
[1732093301265,3.20308,3122.0,3121.5,0.8103]
[1732093302468,0.8231,3121.9,3121.5,0.8103]
[1732093302703,0.8231,3121.9,3121.2,0.763]
[1732093302863,3.20367,3121.5,3121.2,0.763]
[1732093303305,3.20349,3121.6,3121.2,0.763]
[1732093304208,3.89393339,3121.7,3121.2,0.763]
[1732093304614,4.02631,3121.9,3121.2,3.96689]
[1732093304818,3.20321,3121.9,3121.2,3.96689]
[1732093305001,4.02612,3122.1,3121.4,3.20363]
[1732093305171,3.20308,3122.0,3121.4,3.20363]
[1732093305370,3.9661608,3122.0,3121.4,3.20363]
[1732093305587,3.20319,3121.9,3121.4,3.20363]
[1732093305817,3.20329,3121.8,3121.2,3.96681]
[1732093306117,3.20319,3121.9,3121.3,3.20376]
[1732093306318,3.20329,3121.8,3121.3,3.20376]
[1732093307982,3.20329,3121.8,3121.2,0.763]
[1732093308177,0.47891608,3121.9,3121.2,3.96682]
[1732093308377,3.20329,3121.8,3121.2,3.96682]
[1732093308828,6.73107773,3121.8,3121.2,3.96682]
[1732093309424,3.52770773,3121.8,3121.2,3.96682]
[1732093309826,3.52770773,3121.8,3121.2,7.17064]
[1732093310121,3.52770773,3121.8,3121.2,3.96682]
[1732093310275,3.52770773,3121.8,3121.3,3.20379]
[1732093311125,3.52770773,3121.8,3121.2,3.96682]
[1732093311325,3.2034,3121.7,3121.2,3.96682]
[1732093311520,3.52770773,3121.8,3121.2,3.96682]
[1732093312698,3.52770773,3121.8,3121.3,3.20376]
[1732093312899,3.52770773,3121.8,3121.2,0.763]
[1732093313132,3.52770773,3121.8,3121.2,3.96687]
[1732093313377,3.52770773,3121.8,3121.3,3.20376]
[1732093314460,3.2031,3122.0,3121.3,3.20376]
[1732093314958,3.20318,3121.9,3121.3,3.20376]
[1732093315164,3.0,3122.1,3121.6,3.20339]
[1732093315451,6.20284,3122.3,3121.7,3.2033]
[1732093315953,3.0,3122.1,3121.7,3.2033]
[1732093316625,6.20303,3122.1,3121.5,3.9665]
[1732093316831,3.0,3122.1,3121.7,3.20337]
[1732093317154,3.940591,3122.1,3121.7,3.20337]
[1732093317460,0.940591,3122.1,3121.7,3.20337]
[1732093317622,6.20293,3122.2,3121.6,3.20345]
[1732093318223,0.7892,3122.7,3121.5,0.8137]
[1732093318543,3.20234,3122.8,3122.3,3.20276]
[1732093318743,3.921701,3122.8,3122.3,3.20276]
[1732093318947,3.921701,3122.8,3122.2,0.8137]
[1732093319246,3.921701,3122.8,3122.2,4.01654]
[1732093319449,0.719361,3122.8,3122.3,3.20266]
[1732093319652,0.719361,3122.8,3122.4,3.20266]
[1732093319962,3.0,3123.0,3122.5,3.20253]
[1732093320129,3.699121,3123.0,3122.5,3.20253]
[1732093320330,0.699121,3123.0,3122.7,0.8137]
[1732093320521,0.699121,3123.0,3122.7,4.01603]
[1732093320720,0.699121,3123.0,3122.7,0.8137]
[1732093321164,0.699121,3123.0,3122.7,4.01603]
[1732093321335,3.5651019,3123.3,3122.7,4.01603]
[1732093321540,3.20185,3123.2,3122.7,4.01603]
[1732093321939,0.3633419,3123.3,3122.7,4.01598]
[1732093322134,0.43542519,3123.2,3122.8,3.20217]
[1732093323022,0.43542519,3123.2,3122.9,3.20215]
[1732093323439,0.43542519,3123.2,3122.7,0.8137]
[1732093323776,3.20205,3123.0,3122.7,0.8137]
[1732093323924,3.20221,3122.9,3122.4,0.8137]
[1732093324120,0.320221,3122.8,3122.4,0.8137]
[1732093324768,0.320221,3122.8,3122.4,4.01635]
[1732093325433,0.320221,3122.8,3122.4,0.8137]
[1732093328553,3.20222,3122.9,3122.4,0.8137]
[1732093328757,4.33471252,3123.1,3121.7,0.8137]
[1732093328758,3.20241,3122.7,3121.7,0.8137]
[1732093328941,1.109441,3122.6,3122.0,3.203]
[1732093329143,3.20257,3122.5,3121.9,3.20308]
[1732093330183,3.2027,3122.4,3121.9,3.20308]
[1732093330381,3.6337551,3122.5,3121.9,3.20308]
[1732093331242,3.6337551,3122.5,3121.7,0.8137]
[1732093331448,3.20276,3122.3,3121.8,3.20327]
[1732093331688,3.20299,3122.1,3121.7,0.8137]
[1732093331853,3.20299,3122.1,3121.6,3.20348]
[1732093331854,3.99369,3122.1,3121.6,3.20348]
[1732093332268,0.320276,3122.2,3121.8,3.20325]
[1732093332643,0.320276,3122.2,3121.6,3.20348]
[1732093332842,3.7907,3122.4,3121.5,0.7827]
[1732093333170,3.20266,3122.4,3122.0,0.7827]
[1732093333583,3.0,3122.5,3122.0,3.98577]
[1732093333740,6.601956,3122.5,3122.0,0.7827]
[1732093334386,3.20266,3122.4,3122.0,0.7827]
[1732093334758,3.7907,3122.7,3122.0,0.7827]
[1732093334959,3.20225,3122.8,3122.3,3.20275]
[1732093335180,3.92175,3122.8,3122.3,3.20275]
[1732093335558,3.92175,3122.8,3122.1,3.20288]
[1732093335767,3.99285,3122.9,3122.4,3.20259]
[1732093335984,0.7907,3122.9,3122.4,3.20259]
[1732093336308,0.7907,3123.1,3122.4,3.20259]
[1732093336515,0.7907,3123.1,3122.5,0.7827]
[1732093336663,0.7907,3123.3,3122.5,0.7827]
[1732093336865,0.7907,3123.3,3122.8,3.20218]
[1732093337061,0.7907,3123.3,3122.6,3.20236]
[1732093337062,4.391696,3123.3,3122.6,3.20236]
[1732093337308,4.391696,3123.3,3122.7,3.20234]
[1732093337475,4.391696,3123.3,3122.5,0.7827]
[1732093337476,3.20227,3122.8,3122.5,0.7827]
[1732093337662,0.320227,3122.7,3122.2,3.20284]
[1732093337866,3.20224,3122.9,3122.2,3.20284]
[1732093338066,3.2021,3123.0,3122.4,3.20265]
[1732093338388,3.52231,3123.0,3122.5,3.20253]
[1732093338596,0.32021,3123.0,3122.5,3.20253]
[1732093338791,0.32021,3123.0,3121.9,3.20314]
[1732093338792,3.0,3123.2,3122.7,0.7507]
[1732093338998,3.0,3123.2,3122.8,3.20223]
[1732093339167,0.7907,3123.3,3122.8,3.20223]
[1732093339367,6.20163,3123.4,3122.8,3.20223]
[1732093339568,3.20163,3123.4,3122.8,3.20223]
[1732093339991,3.20163,3123.4,3122.8,3.20218]
[1732093340403,3.20174,3123.3,3122.7,0.7507]
[1732093340597,3.602863,3123.3,3122.7,3.95303]
[1732093340911,0.401123,3123.3,3122.8,6.40442]
[1732093341065,0.401123,3123.3,3122.8,3.20218]
[1732093341466,3.8096,3123.5,3123.0,3.20204]
[1732093341771,7.01114,3123.5,3123.0,3.20204]
[1732093342115,0.8096,3123.5,3123.0,3.20204]
[1732093342612,0.8096,3123.5,3122.9,3.20205]
[1732093342986,0.8096,3123.5,3122.8,3.20225]
[1732093343187,0.8096,3123.5,3123.0,3.20203]
[1732093343591,4.01114,3123.5,3122.9,3.20207]
[1732093343919,4.01114,3123.5,3123.0,3.202]
[1732093344103,6.20139,3123.7,3123.1,3.20188]
[1732093344635,6.20139,3123.7,3122.8,3.20216]
[1732093344636,3.20161,3123.5,3122.8,3.20216]
[1732093344916,3.521831,3123.4,3122.7,3.95297]
[1732093345216,3.521831,3123.4,3122.8,3.20222]
[1732093345787,3.20174,3123.3,3122.7,3.95305]
[1732093346119,3.5539231,3123.3,3122.7,3.95305]
[1732093346781,1.1724831,3123.3,3122.7,3.95297]
[1732093347114,3.20167,3123.4,3122.8,3.20219]
[1732093347786,3.2018,3123.3,3122.7,3.95303]
[1732093347988,6.40363,3123.3,3122.7,0.7507]
[1732093348193,3.202,3123.1,3122.7,0.7507]
[1732093348372,3.20215,3122.9,3122.4,4.01753]
[1732093348578,3.20215,3122.9,3122.2,4.01772]
[1732093348815,3.20215,3122.9,3122.2,4.0177]
[1732093349015,3.20215,3122.9,3122.2,7.22048]
[1732093349591,1.1405,3123.0,3122.2,0.8149]
[1732093349836,3.20178,3123.3,3122.4,3.2026]
[1732093349979,0.8203,3123.2,3122.6,3.20239]
[1732093350188,4.0222,3123.2,3122.6,3.20239]
[1732093350375,4.0222,3123.2,3122.6,3.20238]
[1732093350727,0.8203,3123.2,3122.7,4.01719]
[1732093350949,0.8203,3123.2,3122.8,3.20222]
[1732093351324,4.424056,3123.5,3122.8,3.20216]
[1732093351553,0.4424056,3123.4,3122.9,3.20205]
[1732093351846,3.6440456,3123.4,3122.8,3.20216]
[1732093352212,0.4424056,3123.4,3122.8,3.20216]
[1732093352408,3.6441056,3123.4,3122.8,3.20216]
[1732093353150,0.8203,3123.5,3122.8,3.20216]
[1732093353318,4.02183,3123.5,3123.0,3.20204]
[1732093353854,0.8203,3123.5,3123.0,3.20204]
[1732093354667,0.8203,3123.5,3123.0,6.404]
[1732093355363,3.0,3123.6,3123.2,0.8149]
[1732093355855,4.92958639,3123.8,3123.2,4.01666]
[1732093356029,4.02155,3123.8,3123.2,4.01666]
[1732093356551,0.8203,3123.8,3123.2,4.01666]
[1732093356754,4.02154,3123.8,3123.2,4.01666]
[1732093358029,0.8203,3123.8,3123.2,4.01666]
[1732093358223,0.8203,3124.0,3123.7,3.20128]
[1732093358427,6.07919393,3124.9,3124.2,3.20081]
[1732093358428,0.8203,3124.5,3124.2,3.20081]
[1732093358827,0.8203,3124.5,3124.0,3.20098]
[1732093359150,0.8203,3124.5,3123.9,3.20106]
[1732093359151,4.02086,3124.5,3123.9,3.20106]
[1732093359354,0.8203,3124.5,3124.0,3.20101]
[1732093359758,4.02085,3124.5,3123.8,0.8149]
[1732093359967,3.2007,3124.4,3123.8,0.8149]
[1732093360111,0.8203,3124.5,3123.8,4.01612]
[1732093360313,6.40135,3124.4,3123.8,4.01612]
[1732093360517,3.20061,3124.4,3123.8,0.8149]
[1732093360749,3.20082,3124.2,3123.6,3.20139]
[1732093360947,3.20082,3124.2,3123.5,4.01639]
[1732093360948,0.8203,3124.1,3123.5,0.8149]
[1732093361154,4.02128,3124.1,3123.5,4.01642]
[1732093361359,4.02128,3124.1,3123.5,0.8149]
[1732093361571,7.2223,3124.1,3123.5,0.8149]
[1732093361859,4.02128,3124.1,3123.5,0.8149]
[1732093362222,3.20075,3124.3,3123.5,4.01643]
[1732093362420,3.20075,3124.3,3123.5,5.01643]
[1732093362421,3.20089,3124.2,3123.5,5.01643]
[1732093362742,3.20089,3124.2,3123.5,1.8149]
[1732093362946,3.20103,3124.0,3123.5,1.8149]
[1732093363253,3.20112,3123.9,3123.5,1.8149]
[1732093363493,3.20143,3123.6,3123.5,1.0]
[1732093363617,3.922796,3123.6,3123.5,1.0]
[1732093366621,0.721366,3123.6,3123.5,1.0]
[1732093366865,3.20143,3123.6,3123.5,1.0]
[1732093367226,4.01223,3123.8,3123.5,1.0]
[1732093367422,6.40254,3123.8,3123.5,1.0]
[1732093367638,3.20123,3123.8,3123.5,1.0]